fUSD/lending_fUSD_20250905
["ID","MTS","AMOUNT","RATE_DAILY","PERIOD"]
[383770316,1757109287817,-10000.0,0.0006,120]
[383770317,1757109287827,-997.97625573,0.0006,120]
[383770318,1757109287836,-769.14,0.0006,120]
[383770319,1757109287845,-37122.97,0.0006,120]
[383770320,1757109287854,-602354.95980926,0.0006,120]
[383770321,1757109287864,-8574.8921438,0.0006,120]
[383770322,1757109287873,-41723.16,0.0006,30]
[383770323,1757109287882,-153.0,0.000602,120]
[383770324,1757109287891,-1505.0,0.00060233,90]
[383770325,1757109287901,-748.66,0.00060273,120]
[383770326,1757109287910,-748.66,0.00060273,120]
[383770327,1757109287919,-748.66,0.00060273,120]
[383770328,1757109287928,-748.66,0.00060273,120]
[383770329,1757109287938,-748.66,0.00060273,120]
[383770330,1757109287947,-748.66,0.00060273,120]
[383770331,1757109287956,-748.66,0.00060273,120]
[383770332,1757109287965,-748.66,0.00060273,120]
[383770333,1757109287974,-748.66,0.00060273,120]
[383770334,1757109287983,-748.66,0.00060273,120]
[383770335,1757109287992,-748.66,0.00060273,120]
[383770336,1757109288001,-748.66,0.00060273,120]
[383770337,1757109288012,-748.66,0.00060273,120]
[383770338,1757109288021,-748.66,0.00060273,120]
[383770339,1757109288030,-748.66,0.00060273,120]
[383770340,1757109288040,-748.66,0.00060273,120]
[383770341,1757109288048,-748.66,0.00060273,120]
[383770342,1757109288058,-748.66,0.00060273,120]
[383770343,1757109288068,-748.66,0.00060273,120]
[383770344,1757109288077,-748.66,0.00060273,120]
[383770345,1757109288086,-748.66,0.00060273,120]
[383770346,1757109288095,-748.66,0.00060273,120]
[383770347,1757109288105,-748.66,0.00060273,120]
[383770348,1757109288114,-748.7203523,0.00060273,120]
[383770349,1757109288124,-900.0,0.00060274,35]
[383770350,1757109288133,-230.0,0.0006082,2]
[383770351,1757109288142,-1000.0,0.00061,120]
[383770352,1757109288151,-10000.0,0.00061,120]
[383770353,1757109288160,-316.53115841,0.00061,120]
[383770354,1757109288170,-155.07,0.00061117,2]
[383770355,1757109288180,-197072.55710553,0.000615,120]
[383770356,1757109288189,-221.0,0.0006198,2]
[383770357,1757109288198,-1000.0,0.00062,120]
[383770358,1757109288207,-1000.0,0.00062,120]
[383770359,1757109288216,-10000.0,0.00062,120]
[383770360,1757109288225,-153.0,0.00062,120]
[383770361,1757109288235,-3030.65,0.000621,120]
[383770362,1757109288243,-151.0,0.000624,120]
[383770363,1757109288252,-293.49,0.00062682,120]
[383770364,1757109288262,-1000.0,0.00063,120]
[383770365,1757109288271,-10000.0,0.00063,120]
[383770366,1757109288280,-212.0,0.0006314,2]
[383770367,1757109288289,-504.9255007,0.000635,120]
[383770368,1757109288298,-5000.0,0.000639,120]
[383770369,1757109288307,-153.0,0.000639,120]
[383770370,1757109288316,-1000.0,0.00064,120]
[383770371,1757109288325,-10000.0,0.00064,120]
[383770372,1757109288334,-5000.0,0.00064002,30]
[383770373,1757109288344,-5000.0,0.00064007,30]
[383770374,1757109288353,-5000.0,0.00064063,30]
[383770375,1757109288362,-1846.43,0.00064195,30]
[383770376,1757109288371,-1183.24,0.00064257,30]
[383770377,1757109288380,-25000.0,0.00064302,30]
[383770378,1757109288389,-5000.0,0.00064305,30]
[383770379,1757109288398,-203.0,0.0006431,2]
[383770380,1757109288408,-5000.0,0.00064318,30]
[383770381,1757109288417,-325.59,0.00064389,30]
[383770382,1757109288427,-5000.0,0.00064393,30]
[383770383,1757109288436,-5000.0,0.00064402,30]
[383770384,1757109288445,-500000.0,0.0006444,30]
[383770385,1757109288454,-5000.0,0.00064505,30]
[383770386,1757109288463,-5000.0,0.00064522,30]
[383770387,1757109288473,-2000.0,0.0006453,53]
[383770388,1757109288482,-2623.51,0.00064537,30]
[383770389,1757109288491,-275.41,0.00064603,30]
[383770390,1757109288500,-5000.0,0.00064624,30]
[383770391,1757109288510,-5000.0,0.00064635,30]
[383770392,1757109288520,-822.47,0.00064651,30]
[383770393,1757109288529,-18636.02,0.00064672,30]
[383770394,1757109288539,-2469.45,0.00064676,30]
[383770395,1757109288549,-1969.12,0.00064696,30]
[383770396,1757109288558,-2938.07,0.00064697,30]
[383770397,1757109288568,-5000.0,0.00064698,30]
[383770398,1757109288577,-5000.0,0.00064711,30]
[383770399,1757109288587,-25000.0,0.00064713,30]
[383770400,1757109288596,-5000.0,0.0006472,30]
[383770401,1757109288605,-2513.5,0.00064767,30]
[383770402,1757109288615,-967.41,0.00064771,30]
[383770403,1757109288625,-2219.98,0.00064788,30]
[383770404,1757109288635,-5000.0,0.00064853,30]
[383770405,1757109288645,-25000.0,0.00064858,30]
[383770406,1757109288654,-5000.0,0.00064874,30]
[383770407,1757109288663,-2276.0,0.00064904,30]
[383770408,1757109288673,-5000.0,0.00064958,30]
[383770409,1757109288682,-3225.0,0.00065,120]
[383770410,1757109288692,-166304.53329688,0.00065,60]
[383770411,1757109288702,-2000.0,0.00065,120]
[383770412,1757109288711,-150.0,0.00065,120]
[383770413,1757109288721,-201122.63993617,0.00065,60]
[383770414,1757109288730,-5000.0,0.00065,120]
[383770415,1757109288739,-75531.72085015,0.00065,60]
[383770416,1757109288749,-37122.97,0.00065,120]
[383770417,1757109288759,-10000.0,0.000651,120]
[383770418,1757109288768,-10000.0,0.000652,120]
[383770419,1757109288778,-2000.0,0.0006544,51]
[383770420,1757109288800,-195.0,0.0006547,2]
[383770421,1757109288825,-10000.0,0.000655,120]
[383770422,1757109288839,-151.0,0.000655,120]
[383770423,1757109288849,-170619.09650768,0.000655,120]
[383770424,1757109288858,-10000.0,0.000656,120]
[383770425,1757109288868,-223.40111633,0.000656,120]
[383770426,1757109288877,-2000.0,0.0006563,52]
[383770427,1757109288887,-10000.0,0.000657,120]
[383770428,1757109288896,-153.0,0.000657,120]
[383770429,1757109288905,-1000.0,0.00065723,120]
[383770430,1757109288914,-900.0,0.00065753,120]
[383770431,1757109288923,-10000.0,0.000658,120]
[383770432,1757109288933,-10000.0,0.000659,120]
[383770433,1757109288942,-500.0,0.00065945,2]
[383770434,1757109288952,-340.76254661,0.00066,120]
[383770435,1757109288961,-10000.0,0.00066,120]
[383770436,1757109288971,-10377.3651539,0.00066,30]
[383770437,1757109288980,-2108.0,0.00066256,120]
[383770438,1757109288989,-5000.0,0.00066301,120]
[383770439,1757109288999,-5000.0,0.00066301,120]
[383770440,1757109289010,-5000.0,0.00066301,120]
[383770441,1757109289019,-2420.43908772,0.00066301,120]
[383770442,1757109289028,-10000.0,0.000665,120]
[383770443,1757109289038,-186.0,0.0006663,2]
[383770444,1757109289047,-10000.0,0.00067,120]
[383770445,1757109289058,-10000.0,0.000675,120]
[383770446,1757109289067,-153.0,0.000676,120]
[383770447,1757109289076,-177.0,0.000678,2]
[383770448,1757109289085,-2000.0,0.0006798,52]
[383770449,1757109289094,-3000.0,0.00068,120]
[383770450,1757109289103,-5000.0,0.00068,120]
[383770451,1757109289112,-5067.7935962,0.00068,120]
[383770452,1757109289121,-12538.28,0.0006816,120]
[383770453,1757109289130,-226.92,0.00068189,120]
[383770454,1757109289139,-2000.0,0.0006844,52]
[383770455,1757109289148,-151.0,0.000685,120]
[383770456,1757109289158,-293.49,0.00068906,120]
[383770457,1757109289168,-2000.0,0.0006895,49]
[383770458,1757109289177,-2000.0,0.0006896,52]
[383770459,1757109289186,-2000.0,0.0006896,52]
[383770460,1757109289195,-168.0,0.0006896,2]
[383770461,1757109289204,-10000.0,0.00069,120]
[383770462,1757109289212,-150.0,0.00069,120]
[383770463,1757109289222,-288.6739554,0.00069,120]
[383770464,1757109289231,-220.02214654,0.00069,90]
[383770465,1757109289240,-30000.0,0.00069,120]
[383770466,1757109289250,-153.0,0.000694,120]
[383770467,1757109289259,-2000.0,0.0006944,53]
[383770468,1757109289268,-2000.0,0.0006963,53]
[383770469,1757109289277,-152.34397984,0.0006973,60]
[383770470,1757109289287,-2609.0,0.000698,110]
[383770471,1757109289296,-5000.0,0.000699,120]
[383770472,1757109289305,-2000.0,0.0006996,51]
[383770473,1757109289315,-1000.0,0.0006998,120]
[383770474,1757109289324,-467.73502425,0.0007,21]
[383770475,1757109289333,-2000.0,0.0007,120]
[383770476,1757109289342,-19641.43645877,0.0007,120]
[383770477,1757109289352,-290.27379187,0.0007,120]
[383770478,1757109289361,-10000.0,0.0007,120]
[383770479,1757109289370,-150.0,0.0007,120]
[383770480,1757109289379,-150.0,0.0007,120]
[383770481,1757109289388,-25000.0,0.0007,120]
[383770482,1757109289398,-500.0,0.0007,120]
[383770483,1757109289407,-271.13785514,0.0007,120]
[383770484,1757109289416,-129999.999999,0.0007,30]
[383770485,1757109289425,-54415.19625407,0.0007,120]
[383770486,1757109290379,-500.43979459,0.0003726,10]
[383770487,1757109290546,-211.63,0.0003396,2]
[383770488,1757109290555,-253.68905795,0.0003589,10]
[383770489,1757109290564,-400.0,0.0003589,10]
[383770490,1757109290573,-400.0,0.0003589,10]
[383770491,1757109290582,-400.0,0.00036164,10]
[383770492,1757109290591,-400.0,0.00036164,10]
[383770493,1757109290601,-400.0,0.00036438,10]
[383770494,1757109290610,-400.0,0.00036712,10]
[383770495,1757109290620,-400.0,0.00036986,10]
[383770496,1757109290630,-935.76,0.000371,7]
[383770497,1757109290640,-6.28020541,0.0003726,10]
[383770498,1757109290649,-400.0,0.0003726,10]
[383770499,1757109290659,-506.72,0.00037534,10]
[383770500,1757109290669,-438.92073664,0.00037808,10]
[383770501,1757109290681,-67.79926336,0.00037808,10]
[383770502,1757109290691,-409.61,0.00038082,10]
[383770503,1757109290701,-469.08,0.00038082,10]
[383770504,1757109290710,-19.33210252,0.00038082,10]
[383770505,1757109290742,-400.0,0.00036712,10]
[383770506,1757109290752,-487.38789748,0.00038082,10]
[383770507,1757109290761,-66.54187815,0.00038356,10]
[383770508,1757109290774,-454.74812185,0.00038356,10]
[383770509,1757109290784,-434.12,0.00038356,10]
[383770510,1757109290794,-409.61,0.00038356,10]
[383770511,1757109290804,-469.08,0.00038356,10]
[383770512,1757109290814,-506.72,0.00038356,10]
[383770513,1757109290823,-521.29,0.0003863,10]
[383770514,1757109290832,-434.12,0.0003863,10]
[383770515,1757109290842,-268.41207681,0.0003863,10]
[383770519,1757109458894,155.02,0.00013699,2]
[383770520,1757109728321,230.13,0.00016768,2]
[383770521,1757109728520,230.13,0.00017651,2]
[383770522,1757109728951,230.13,0.00018533,2]
[383770523,1757109729834,-230.13,0.00019416,2]
[383770524,1757109909712,296.437,0.00019416,21]
[383770525,1757109966322,-634.77746184,0.00038011,120]
[383770560,1757110232253,-230.13,0.00020298,2]
[383770561,1757110232263,-230.13,0.00021181,2]
[383770562,1757110232273,-230.13,0.00022063,2]
[383770563,1757110232282,-230.13,0.00022946,2]
[383770564,1757110232291,-230.13,0.00023829,2]
[383770565,1757110232301,-230.13,0.00024711,2]
[383770566,1757110232314,-500.0,0.00025588,2]
[383770567,1757110232323,-500.0,0.00025588,2]
[383770568,1757110232333,-500.0,0.00025588,2]
[383770569,1757110232342,-500.0,0.00025588,2]
[383770570,1757110232353,-1200.0,0.00025589,2]
[383770571,1757110232362,-230.13,0.00025594,2]
[383770572,1757110232370,-230.13,0.00026476,2]
[383770573,1757110232379,-230.13,0.00027359,2]
[383770574,1757110232389,-230.13,0.00028241,2]
[383770575,1757110232400,-155.02,0.0002911,2]
[383770576,1757110232409,-230.13,0.00029124,2]
[383770577,1757110232418,-230.13,0.00030006,2]
[383770578,1757110232428,-400.0,0.00030136,2]
[383770579,1757110232437,-688.0,0.00030136,2]
[383770580,1757110232446,-151.50409218,0.00030136,2]
[383770581,1757110232455,-33052.0,0.00030137,120]
[383770582,1757110232464,-500.0,0.00030159,7]
[383770583,1757110232473,-500.0,0.00030196,7]
[383770584,1757110232482,-500.0,0.00030197,7]
[383770585,1757110232492,-500.0,0.00030205,7]
[383770586,1757110232501,-500.0,0.00030206,7]
[383770587,1757110232510,-500.0,0.00030341,7]
[383770588,1757110232519,-500.0,0.00030348,7]
[383770589,1757110232531,-500.0,0.00030351,7]
[383770590,1757110232540,-500.0,0.00030372,7]
[383770591,1757110232549,-500.0,0.00030434,7]
[383770592,1757110232558,-168.19,0.00030468,2]
[383770593,1757110232567,-250.0,0.00030499,2]
[383770594,1757110232576,-160.0,0.000305,7]
[383770595,1757110232585,-500.0,0.00030504,7]
[383770597,1757110232594,-500.0,0.00030559,7]
[383770598,1757110232603,-500.0,0.00030598,7]
[383770599,1757110232613,-500.0,0.000307,7]
[383770600,1757110232622,-500.0,0.00030732,7]
[383770601,1757110232631,-228.0,0.00030767,2]
[383770602,1757110232641,-500.0,0.0003077,7]
[383770603,1757110232650,-500.0,0.00030819,7]
[383770604,1757110232659,-500.0,0.0003082,7]
[383770605,1757110232668,-500.0,0.00030823,7]
[383770606,1757110232677,-500.0,0.00030839,7]
[383770607,1757110232687,-500.0,0.00030859,7]
[383770608,1757110232696,-500.0,0.00030882,7]
[383770609,1757110232705,-230.13,0.00030889,2]
[383770610,1757110232714,-500.0,0.00030979,7]
[383770611,1757110232723,-4000.0,0.00031,30]
[383770612,1757110232732,-500.0,0.00031076,7]
[383770613,1757110232741,-320.64,0.000311,2]
[383770614,1757110232751,-500.0,0.0003121,7]
[383770615,1757110232760,-500.0,0.00031247,7]
[383770616,1757110232769,-500.0,0.00031306,7]
[383770617,1757110232778,-500.0,0.00031359,7]
[383770618,1757110232788,-165.47,0.00031372,2]
[383770619,1757110232797,-500.0,0.00031439,7]
[383770620,1757110232806,-500.0,0.00031559,7]
[383770621,1757110232816,-500.0,0.00031571,7]
[383770622,1757110232826,-500.0,0.0003159,7]
[383770623,1757110232835,-500.0,0.00031641,7]
[383770624,1757110232846,-459.41221025,0.00031671,7]
[383770625,1757110232859,-40.58778975,0.00031671,7]
[383770626,1757110232869,-500.0,0.00031678,7]
[383770627,1757110232883,-500.0,0.00031753,7]
[383770628,1757110232892,-230.13,0.00031772,2]
[383770629,1757110232901,-500.0,0.0003178,7]
[383770630,1757110232911,-500.0,0.00031831,7]
[383770631,1757110232921,-500.0,0.00031876,7]
[383770632,1757110232930,-500.0,0.00032003,7]
[383770633,1757110232939,-500.0,0.00032006,7]
[383770634,1757110232948,-500.0,0.0003211,7]
[383770635,1757110232957,-500.0,0.00032187,7]
[383770636,1757110232967,-500.0,0.00032231,7]
[383770637,1757110232976,-500.0,0.00032245,7]
[383770638,1757110232985,-500.0,0.00032282,7]
[383770639,1757110232995,-500.0,0.00032294,7]
[383770640,1757110233004,-500.0,0.00032338,7]
[383770641,1757110233014,-500.0,0.00032381,7]
[383770642,1757110233024,-179.16,0.00032483,2]
[383770643,1757110233033,-500.0,0.00032484,7]
[383770644,1757110233043,-500.0,0.00032499,7]
[383770645,1757110233052,-555.58505592,0.00032501,7]
[383770646,1757110233062,-1322.67,0.00032553,2]
[383770647,1757110233071,-500.0,0.00032605,7]
[383770648,1757110233080,-230.13,0.00032654,2]
[383770649,1757110233090,-500.0,0.00032674,7]
[383770650,1757110233100,-180.18517051,0.00032737,7]
[383770651,1757110233109,-500.0,0.00032791,7]
[383770652,1757110233118,-500.0,0.00032792,7]
[383770653,1757110233128,-500.0,0.00032877,7]
[383770654,1757110233138,-500.0,0.00032877,7]
[383770655,1757110233148,-500.0,0.00032895,7]
[383770656,1757110233157,-500.0,0.00032929,7]
[383770657,1757110233166,-994.5,0.00032938,30]
[383770658,1757110233176,-500.0,0.00032997,7]
[383770659,1757110233185,-500.0,0.0003306,7]
[383770660,1757110233194,-500.0,0.00033061,7]
[383770661,1757110233204,-500.0,0.00033096,7]
[383770662,1757110233213,-500.0,0.00033117,7]
[383770663,1757110233223,-500.0,0.00033292,7]
[383770664,1757110233303,-500.0,0.00033335,7]
[383770665,1757110233349,-500.0,0.00033386,7]
[383770666,1757110233359,-500.0,0.00033395,7]
[383770667,1757110233368,-500.0,0.00033401,7]
[383770668,1757110233377,-230.13,0.00033537,2]
[383770669,1757110233386,-500.0,0.00033576,7]
[383770670,1757110233396,-500.0,0.00033675,7]
[383770671,1757110233406,-500.0,0.00033679,7]
[383770672,1757110233416,-500.0,0.0003373,7]
[383770673,1757110233425,-500.0,0.00033762,7]
[383770674,1757110233435,-500.0,0.00033821,7]
[383770675,1757110233444,-343.0,0.00033882,2]
[383770676,1757110233454,-560.44338692,0.0003389,7]
[383770677,1757110233464,-500.0,0.00033893,7]
[383770678,1757110233473,-163.62,0.00033902,2]
[383770679,1757110233483,-500.0,0.00033936,7]
[383770680,1757110233492,-343.0,0.00033952,7]
[383770681,1757110233502,-168.0,0.00033982,2]
[383770682,1757110233511,-343.0,0.00033985,7]
[383770683,1757110233521,-500.0,0.00033986,7]
[383770684,1757110233530,-4000.0,0.00033989,2]
[383770685,1757110233540,-500.0,0.00034025,7]
[383770686,1757110233549,-343.0,0.00034043,2]
[383770687,1757110233558,-500.0,0.00034065,7]
[383770688,1757110233567,-183.4,0.00034087,30]
[383770689,1757110233577,-500.0,0.00034125,7]
[383770690,1757110233586,-500.0,0.00034135,7]
[383770691,1757110233595,-500.0,0.00034225,7]
[383770692,1757110233605,-343.0,0.00034237,2]
[383770693,1757110233614,-1500.0,0.00034239,16]
[383770694,1757110233624,-500.0,0.00034279,7]
[383770695,1757110233633,-500.0,0.00034334,7]
[383770696,1757110233643,-500.0,0.00034398,7]
[383770697,1757110233653,-500.0,0.00034424,7]
[383770698,1757110233663,-500.0,0.00034486,7]
[383770699,1757110233672,-600.53406039,0.00034495,7]
[383770700,1757110233681,-500.0,0.00034498,7]
[383770701,1757110233691,-500.0,0.00034529,7]
[383770702,1757110233701,-500.0,0.00034633,7]
[383770703,1757110233711,-482.40768197,0.0003464,2]
[383770704,1757110233721,-10961.72,0.00034649,30]
[383770705,1757110233731,-19999.99,0.00034649,2]
[383770706,1757110233740,-574.557,0.00034656,39]
[383770707,1757110233750,-500.0,0.00034754,7]
[383770708,1757110233759,-500.0,0.00034772,7]
[383770709,1757110233769,-1000.0,0.00034774,2]
[383770710,1757110233778,-343.0,0.00034785,2]
[383770711,1757110233788,-500.0,0.00034825,7]
[383770712,1757110233798,-52239.1047,0.00034853,2]
[383770713,1757110233807,-150.105,0.00034874,2]
[383770714,1757110233816,-150.073,0.00034874,2]
[383770715,1757110233827,-344.0,0.00034939,2]
[383770716,1757110233836,-257.161,0.0003494,2]
[383770717,1757110233847,-500.0,0.00034947,7]
[383770718,1757110233857,-1079.20592836,0.00034961,30]
[383770719,1757110233866,-150.0,0.00034967,2]
[383770720,1757110233876,-150.0,0.00034967,2]
[383770721,1757110233885,-500.0,0.00034968,7]
[383770722,1757110233895,-195.23,0.00035,7]
[383770723,1757110233905,-4007.0,0.00035,30]
[383770724,1757110233915,-500.0,0.00035073,7]
[383770725,1757110233925,-500.0,0.00035089,7]
[383770726,1757110233934,-163.62,0.00035151,2]
[383770727,1757110233944,-500.0,0.00035164,7]
[383770728,1757110233953,-343.0,0.00035194,2]
[383770729,1757110233963,-500.0,0.00035221,7]
[383770730,1757110233972,-500.0,0.00035236,7]
[383770731,1757110233982,-500.0,0.00035343,7]
[383770732,1757110233991,-343.0,0.00035346,2]
[383770733,1757110234001,-500.0,0.00035347,7]
[383770734,1757110234012,-500.0,0.00035352,7]
[383770735,1757110234022,-2047.62509854,0.00035416,2]
[383770736,1757110234032,-500.0,0.00035453,7]
[383770737,1757110234042,-500.0,0.00035473,7]
[383770738,1757110234052,-500.0,0.00035508,7]
[383770739,1757110234062,-500.0,0.00035514,7]
[383770740,1757110234071,-1000.0,0.00035516,2]
[383770741,1757110234080,-4113.2878,0.00035516,2]
[383770742,1757110234090,-614.1829483,0.00035516,2]
[383770743,1757110234102,-3240.96220182,0.00035516,2]
[383770744,1757110234112,-500.0,0.00035584,7]
[383770745,1757110234122,-1506.74,0.00035596,2]
[383770746,1757110234131,-8207.80933114,0.00035606,2]
[383770747,1757110234143,-995.11470026,0.00035606,2]
[383770748,1757110234177,-307.52864058,0.00025588,2]
[383770749,1757110234187,-480.70771975,0.00025588,2]
[383770750,1757110234198,-19.29228025,0.00025588,2]
[383770751,1757110234207,-500.0,0.00032877,7]
[383770752,1757110234217,-500.0,0.00032877,7]
[383770753,1757110234226,-7565.94880091,0.00035606,2]
[383770754,1757110234257,-476.3919873,0.00025588,2]
[383770755,1757110234267,-569.08183254,0.00032877,7]
[383770756,1757110234277,-18729.36764615,0.00035606,2]
[383770757,1757110234288,-1565.66626413,0.00035606,2]
[383770758,1757110234301,-535.69715058,0.00035606,2]
[383770790,1757110238133,-2242.24,0.00035606,2]
[383770791,1757110238145,-961.50098434,0.00035606,2]
[383770792,1757110238156,-668.90733716,0.00035606,2]
[383770793,1757110238296,-12272.16244083,0.00035606,2]
[383770794,1757110238306,-282.95,0.00035615,7]
[383770795,1757110238320,-400.0,0.00035616,10]
[383770796,1757110238329,-400.0,0.00035616,10]
[383770797,1757110238339,-400.0,0.00035616,10]
[383770798,1757110238348,-400.0,0.00035616,2]
[383770799,1757110238359,-400.0,0.00035616,10]
[383770800,1757110238369,-400.0,0.00035616,10]
[383770801,1757110238380,-400.0,0.00035616,10]
[383770802,1757110238390,-400.0,0.00035616,10]
[383770803,1757110238401,-400.0,0.00035616,10]
[383770804,1757110238410,-400.0,0.00035616,10]
[383770805,1757110238420,-238.90562966,0.00035616,10]
[383770806,1757110238430,-405.13493824,0.00035616,10]
[383770807,1757110238439,-400.0,0.00035616,10]
[383770808,1757110238448,-517.93794486,0.00035616,10]
[383770809,1757110238458,-400.0,0.00035616,10]
[383770810,1757110238467,-400.0,0.00035616,10]
[383770811,1757110238477,-400.0,0.00035616,10]
[383770812,1757110238486,-400.0,0.00035616,10]
[383770813,1757110238495,-400.0,0.00035616,10]
[383770814,1757110238503,-400.0,0.00035616,10]
[383770815,1757110238512,-400.0,0.00035616,10]
[383770816,1757110238521,-400.0,0.00035616,10]
[383770817,1757110238530,-400.0,0.00035616,10]
[383770818,1757110238539,-400.0,0.00035616,10]
[383770819,1757110238548,-279.6803498,0.00035616,10]
[383770820,1757110238558,-400.0,0.00035616,10]
[383770821,1757110238566,-400.0,0.00035616,10]
[383770822,1757110238575,-495.12452916,0.00035616,10]
[383770823,1757110238585,-400.0,0.00035616,10]
[383770825,1757110238595,-409.54,0.00035616,10]
[383770827,1757110238604,-400.0,0.00035616,10]
[383770829,1757110238613,-400.0,0.00035616,10]
[383770831,1757110238623,-400.0,0.00035616,10]
[383770833,1757110238632,-400.0,0.00035616,10]
[383770835,1757110238641,-500.0,0.00035616,2]
[383770837,1757110238651,-400.0,0.00035616,10]
[383770839,1757110238660,-400.0,0.00035616,10]
[383770841,1757110238669,-400.0,0.00035616,10]
[383770844,1757110238678,-400.0,0.00035616,10]
[383770847,1757110238688,-400.0,0.00035616,10]
[383770850,1757110238698,-400.0,0.00035616,10]
[383770854,1757110238707,-249.19,0.00035616,10]
[383770857,1757110238716,-400.0,0.00035616,10]
[383770859,1757110238726,-400.0,0.00035616,10]
[383770862,1757110238735,-400.0,0.00035616,10]
[383770864,1757110238745,-400.0,0.00035616,10]
[383770866,1757110238755,-400.0,0.00035616,10]
[383770868,1757110238764,-400.0,0.00035616,10]
[383770870,1757110238774,-400.0,0.00035616,10]
[383770872,1757110238783,-400.0,0.00035616,10]
[383770874,1757110238792,-400.0,0.00035616,10]
[383770876,1757110238801,-400.0,0.00035616,10]
[383770878,1757110238810,-400.0,0.00035616,10]
[383770880,1757110238819,-400.0,0.00035616,10]
[383770882,1757110238828,-400.0,0.00035616,10]
[383770884,1757110238837,-400.0,0.00035616,10]
[383770886,1757110238846,-400.0,0.00035616,10]
[383770888,1757110238855,-400.0,0.00035616,10]
[383770889,1757110238864,-400.0,0.00035616,10]
[383770891,1757110238874,-400.0,0.00035616,10]
[383770893,1757110238884,-257.52102837,0.00035616,10]
[383770895,1757110238893,-647.03,0.00035616,10]
[383770897,1757110238902,-400.0,0.00035616,10]
[383770900,1757110238912,-400.0,0.00035616,10]
[383770902,1757110238922,-656.12,0.00035616,10]
[383770903,1757110238934,-400.0,0.00035616,10]
[383770905,1757110238944,-400.0,0.00035616,10]
[383770907,1757110238953,-400.0,0.00035616,10]
[383770909,1757110238962,-400.0,0.00035616,10]
[383770912,1757110238972,-400.0,0.00035616,10]
[383770914,1757110238981,-400.0,0.00035616,10]
[383770915,1757110238990,-530.18,0.00035616,10]
[383770917,1757110238999,-400.0,0.00035616,10]
[383770919,1757110239011,-400.0,0.00035616,10]
[383770921,1757110239029,-400.0,0.00035616,10]
[383770923,1757110239037,-400.0,0.00035616,10]
[383770925,1757110239047,-400.0,0.00035616,10]
[383770927,1757110239056,-400.0,0.00035616,10]
[383770929,1757110239065,-400.0,0.00035616,10]
[383770931,1757110239074,-400.0,0.00035616,10]
[383770933,1757110239083,-400.0,0.00035616,10]
[383770935,1757110239093,-400.0,0.00035616,10]
[383770937,1757110239112,-340.08800743,0.00035616,10]
[383770939,1757110239124,-400.0,0.00035616,10]
[383770941,1757110239133,-400.0,0.00035616,10]
[383770943,1757110239142,-400.0,0.00035616,10]
[383770945,1757110239151,-400.0,0.00035616,10]
[383770947,1757110239160,-400.0,0.00035616,10]
[383770949,1757110239169,-610.42,0.00035616,10]
[383770951,1757110239178,-400.0,0.00035616,10]